[Event "Early-Titled-Tuesday-Blitz-April-23-2024"]
[Site "Chess.com"]
[Date "2024.04.23"]
[Round "2"]
[White "Orest_Vovk"]
[Black "GMAkobianSTL"]
[Result "1/2-1/2"]
[WhiteElo "2553"]
[BlackElo "2802"]
[TimeControl "180+1"]
[EndTime "8:18:21 PDT"]
[Termination "Game drawn - insufficient material"]

1. h4 {[%clk 0:03:00.9]} 1... d5 {[%clk 0:02:59.4]} 2. h5 {[%clk 0:03:00.6]}
2... e5 {[%clk 0:02:58.2]} 3. h6 {[%clk 0:03:00.9]} 3... g6 {[%clk 0:02:46]} 4.
d4 {[%clk 0:03:01.2]} 4... e4 {[%clk 0:02:42.7]} 5. c4 {[%clk 0:03:00.8]} 5...
c6 {[%clk 0:02:42.3]} 6. Nc3 {[%clk 0:03:00.2]} 6... Nf6 {[%clk 0:02:41.9]} 7.
Bg5 {[%clk 0:02:56]} 7... Be7 {[%clk 0:02:40.8]} 8. e3 {[%clk 0:02:55.5]} 8...
O-O {[%clk 0:02:40.6]} 9. Qb3 {[%clk 0:02:54.4]} 9... Nbd7 {[%clk 0:02:34.3]}
10. Nh3 {[%clk 0:02:50.6]} 10... Nb6 {[%clk 0:02:33.2]} 11. cxd5 {[%clk
0:02:44.1]} 11... Nbxd5 {[%clk 0:02:29.2]} 12. Bc4 {[%clk 0:02:38.1]} 12... Be6
{[%clk 0:02:25.6]} 13. Bxf6 {[%clk 0:02:27.4]} 13... Bxf6 {[%clk 0:02:21.4]} 14.
Bxd5 {[%clk 0:02:24.5]} 14... cxd5 {[%clk 0:02:14.4]} 15. Nf4 {[%clk 0:02:24.6]}
15... Bg5 {[%clk 0:02:10.7]} 16. Nxe6 {[%clk 0:02:14]} 16... fxe6 {[%clk
0:02:10]} 17. Qxb7 {[%clk 0:02:13.8]} 17... Rf7 {[%clk 0:02:02.4]} 18. Qc6
{[%clk 0:02:13.9]} 18... Rf6 {[%clk 0:01:44.6]} 19. Qb7 {[%clk 0:02:05.4]} 19...
Qf8 {[%clk 0:01:37.5]} 20. Qg7+ {[%clk 0:02:00.4]} 20... Qxg7 {[%clk 0:01:35.5]}
21. hxg7 {[%clk 0:02:01.3]} 21... Kxg7 {[%clk 0:01:35.6]} 22. Rc1 {[%clk
0:01:50.9]} 22... Rf7 {[%clk 0:01:24.8]} 23. Nd1 {[%clk 0:01:42.9]} 23... Rb8
{[%clk 0:01:18.5]} 24. Rc6 {[%clk 0:01:33.7]} 24... Rb6 {[%clk 0:01:17.5]} 25.
Rxb6 {[%clk 0:01:31.7]} 25... axb6 {[%clk 0:01:17.2]} 26. Ke2 {[%clk 0:01:28.6]}
26... h5 {[%clk 0:01:15.2]} 27. Nc3 {[%clk 0:01:22.5]} 27... h4 {[%clk
0:01:07.1]} 28. Na4 {[%clk 0:01:08.9]} 28... Bd8 {[%clk 0:01:06.5]} 29. Rc1
{[%clk 0:01:04.6]} 29... Rc7 {[%clk 0:01:06.1]} 30. Rxc7+ {[%clk 0:01:00.2]}
30... Bxc7 {[%clk 0:01:06]} 31. f3 {[%clk 0:00:59.6]} 31... Kf6 {[%clk
0:01:01.8]} 32. Nc3 {[%clk 0:00:55.6]} 32... Kf5 {[%clk 0:00:56.8]} 33. fxe4+
{[%clk 0:00:45.4]} 33... dxe4 {[%clk 0:00:56.4]} 34. d5 {[%clk 0:00:35]} 34...
Be5 {[%clk 0:00:25.5]} 35. dxe6 {[%clk 0:00:34]} 35... Kxe6 {[%clk 0:00:25.1]}
36. Nxe4 {[%clk 0:00:33.3]} 36... Bxb2 {[%clk 0:00:24.9]} 37. Kf3 {[%clk
0:00:31.6]} 37... Kd5 {[%clk 0:00:22]} 38. Ng5 {[%clk 0:00:18.8]} 38... Kc4
{[%clk 0:00:20]} 39. Kg4 {[%clk 0:00:14.4]} 39... Kb4 {[%clk 0:00:19.9]} 40.
Kxh4 {[%clk 0:00:09.1]} 40... Ka3 {[%clk 0:00:20]} 41. Ne6 {[%clk 0:00:05.8]}
41... b5 {[%clk 0:00:19.2]} 42. Nc7 {[%clk 0:00:02.2]} 42... b4 {[%clk
0:00:18.9]} 43. Nd5 {[%clk 0:00:02.5]} 43... Bf6+ {[%clk 0:00:14.5]} 44. Kg4
{[%clk 0:00:02]} 44... Bd8 {[%clk 0:00:13.5]} 45. e4 {[%clk 0:00:02]} 45... Ba5
{[%clk 0:00:13.6]} 46. Nxb4 {[%clk 0:00:02.4]} 46... Bxb4 {[%clk 0:00:11.4]} 47.
Kg5 {[%clk 0:00:03.3]} 47... Kxa2 {[%clk 0:00:11.7]} 48. Kxg6 {[%clk 0:00:04.2]}
48... Kb3 {[%clk 0:00:12]} 49. e5 {[%clk 0:00:04.8]} 49... Kc4 {[%clk
0:00:11.9]} 50. e6 {[%clk 0:00:05.7]} 50... Kd5 {[%clk 0:00:11.6]} 51. Kf7
{[%clk 0:00:06.6]} 51... Ke5 {[%clk 0:00:11.5]} 52. g4 {[%clk 0:00:07]} 52...
Kf4 {[%clk 0:00:11.4]} 53. e7 {[%clk 0:00:07.7]} 53... Bxe7 {[%clk 0:00:11.2]}
54. Kxe7 {[%clk 0:00:08]} 54... Kxg4 {[%clk 0:00:12.1]} 1/2-1/2

[Event "Early-Titled-Tuesday-Blitz-April-23-2024"]
[Site "Chess.com"]
[Date "2024.04.23"]
[Round "2"]
[White "kacperkarwowski"]
[Black "NMChessToImpress"]
[Result "1-0"]
[WhiteElo "2499"]
[BlackElo "2220"]
[TimeControl "180+1"]
[EndTime "8:18:23 PDT"]
[Termination "kacperkarwowski won on time"]

1. d4 {[%clk 0:02:53.8]} 1... e6 {[%clk 0:03:00]} 2. c4 {[%clk 0:02:52.5]} 2...
Nf6 {[%clk 0:02:59.8]} 3. Nc3 {[%clk 0:02:52.3]} 3... d5 {[%clk 0:02:59.8]} 4.
cxd5 {[%clk 0:02:47.6]} 4... exd5 {[%clk 0:03:00.7]} 5. Qc2 {[%clk 0:02:48]}
5... c6 {[%clk 0:03:01]} 6. e3 {[%clk 0:02:47.1]} 6... Be7 {[%clk 0:03:01.5]} 7.
Bd3 {[%clk 0:02:46.9]} 7... O-O {[%clk 0:03:01.9]} 8. Nge2 {[%clk 0:02:47]} 8...
Na6 {[%clk 0:02:49.6]} 9. a3 {[%clk 0:02:46.6]} 9... Nc7 {[%clk 0:02:45.7]} 10.
O-O {[%clk 0:02:43.4]} 10... a5 {[%clk 0:02:28.9]} 11. f3 {[%clk 0:02:34.7]}
11... Ne6 {[%clk 0:02:22.6]} 12. Bd2 {[%clk 0:02:13]} 12... g6 {[%clk
0:02:19.1]} 13. Be1 {[%clk 0:02:12.8]} 13... b5 {[%clk 0:02:15]} 14. Bf2 {[%clk
0:02:10.1]} 14... Bd7 {[%clk 0:02:10.1]} 15. e4 {[%clk 0:02:03.7]} 15... dxe4
{[%clk 0:02:10.1]} 16. Nxe4 {[%clk 0:01:57]} 16... Rc8 {[%clk 0:01:55.7]} 17. a4
{[%clk 0:01:47.9]} 17... Ng7 {[%clk 0:01:07.6]} 18. Qd2 {[%clk 0:01:40.6]} 18...
Nd5 {[%clk 0:00:56.3]} 19. axb5 {[%clk 0:01:32.4]} 19... Bb4 {[%clk 0:00:53.8]}
20. Qd1 {[%clk 0:00:57.2]} 20... cxb5 {[%clk 0:00:53.2]} 21. N2c3 {[%clk
0:00:56.3]} 21... Nxc3 {[%clk 0:00:35.8]} 22. bxc3 {[%clk 0:00:56.2]} 22... Bxc3
{[%clk 0:00:33.1]} 23. Nxc3 {[%clk 0:00:56.5]} 23... Rxc3 {[%clk 0:00:33.9]} 24.
Be1 {[%clk 0:00:56.2]} 24... Rc8 {[%clk 0:00:19.3]} 25. Bxa5 {[%clk 0:00:56]}
25... Qf6 {[%clk 0:00:18.1]} 26. Be4 {[%clk 0:00:42.4]} 26... Bf5 {[%clk
0:00:16.2]} 27. Qd3 {[%clk 0:00:33.5]} 27... Rc4 {[%clk 0:00:11.5]} 28. Rad1
{[%clk 0:00:24.2]} 28... Qd6 {[%clk 0:00:05.9]} 29. Bc3 {[%clk 0:00:18.5]} 29...
Ra8 {[%clk 0:00:05.4]} 30. d5 {[%clk 0:00:12.8]} 30... Ra3 {[%clk 0:00:05.1]}
31. Rc1 {[%clk 0:00:11]} 31... Rxe4 {[%clk 0:00:02.6]} 32. fxe4 {[%clk
0:00:11.2]} 32... b4 {[%clk 0:00:02.1]} 33. exf5 {[%clk 0:00:08.5]} 33... Nxf5
{[%clk 0:00:02.4]} 34. Qb1 {[%clk 0:00:02.8]} 34... bxc3 {[%clk 0:00:02.3]} 35.
Qd3 {[%clk 0:00:02.6]} 35... c2 {[%clk 0:00:01.9]} 36. Rxc2 {[%clk 0:00:01.8]}
36... Nd4 {[%clk 0:00:02.5]} 37. Qxa3 {[%clk 0:00:01.1]} 37... Qxa3 {[%clk
0:00:02.4]} 38. Rcf2 {[%clk 0:00:01.8]} 38... Kg7 {[%clk 0:00:02.4]} 39. Rxf7+
{[%clk 0:00:01.9]} 39... Kh6 {[%clk 0:00:03.1]} 40. R7f2 {[%clk 0:00:02.8]}
40... Qe3 {[%clk 0:00:02.6]} 41. Kh1 {[%clk 0:00:03.7]} 41... Ne2 {[%clk
0:00:02.7]} 42. Rf3 {[%clk 0:00:03.9]} 42... Qe4 {[%clk 0:00:02.4]} 43. Rh3+
{[%clk 0:00:04.1]} 43... Kg7 {[%clk 0:00:02.3]} 44. Rd1 {[%clk 0:00:04.8]} 44...
Nf4 {[%clk 0:00:02.5]} 45. Rf3 {[%clk 0:00:05.2]} 45... Nxd5 {[%clk 0:00:02.3]}
46. Rdf1 {[%clk 0:00:05.1]} 46... Ne3 {[%clk 0:00:01.7]} 47. Rf7+ {[%clk
0:00:05.4]} 47... Kh6 {[%clk 0:00:01.7]} 48. Rg1 {[%clk 0:00:06.1]} 1-0

[Event "Early-Titled-Tuesday-Blitz-April-23-2024"]
[Site "Chess.com"]
[Date "2024.04.23"]
[Round "2"]
[White "baki83"]
[Black "andriipalchuk"]
[Result "1-0"]
[WhiteElo "2912"]
[BlackElo "2613"]
[TimeControl "180+1"]
[EndTime "8:18:26 PDT"]
[Termination "baki83 won on time"]

1. e4 {[%clk 0:03:00.9]} 1... c6 {[%clk 0:02:58.5]} 2. Nf3 {[%clk 0:02:48.7]}
2... d5 {[%clk 0:02:58.6]} 3. Nc3 {[%clk 0:02:49.3]} 3... dxe4 {[%clk
0:02:58.8]} 4. Nxe4 {[%clk 0:02:49.6]} 4... Nf6 {[%clk 0:02:59.7]} 5. Qe2 {[%clk
0:02:50.3]} 5... Nxe4 {[%clk 0:03:00.4]} 6. Qxe4 {[%clk 0:02:50.3]} 6... Qd5
{[%clk 0:03:01.3]} 7. Qh4 {[%clk 0:02:49.7]} 7... Qe6+ {[%clk 0:02:59.3]} 8. Be2
{[%clk 0:02:49.8]} 8... Qg4 {[%clk 0:02:59.9]} 9. Qg3 {[%clk 0:02:50.1]} 9...
Qxg3 {[%clk 0:03:00.2]} 10. hxg3 {[%clk 0:02:50.2]} 10... g6 {[%clk 0:03:00.9]}
11. d4 {[%clk 0:02:38.4]} 11... Nd7 {[%clk 0:03:00.2]} 12. Bf4 {[%clk
0:02:25.8]} 12... Bg7 {[%clk 0:02:59.6]} 13. O-O-O {[%clk 0:02:25.8]} 13... Nf6
{[%clk 0:02:59.4]} 14. Ne5 {[%clk 0:02:24.9]} 14... Be6 {[%clk 0:02:54.6]} 15.
a3 {[%clk 0:02:19.3]} 15... Ne4 {[%clk 0:02:50.2]} 16. Be3 {[%clk 0:02:07.7]}
16... Nd6 {[%clk 0:02:43.3]} 17. g4 {[%clk 0:02:06.2]} 17... O-O-O {[%clk
0:02:41.5]} 18. f4 {[%clk 0:01:54.4]} 18... Kc7 {[%clk 0:01:44.8]} 19. Bf3
{[%clk 0:01:40.6]} 19... Bd5 {[%clk 0:01:00.7]} 20. Bxd5 {[%clk 0:01:12.6]}
20... cxd5 {[%clk 0:01:01.6]} 21. Bd2 {[%clk 0:01:12.4]} 21... Bxe5 {[%clk
0:00:46.2]} 22. dxe5 {[%clk 0:01:09.6]} 22... Ne4 {[%clk 0:00:46.1]} 23. Rh6
{[%clk 0:01:00.1]} 23... Nf2 {[%clk 0:00:44.9]} 24. Re1 {[%clk 0:00:58.9]} 24...
Nxg4 {[%clk 0:00:44.5]} 25. Rh3 {[%clk 0:00:59.5]} 25... h5 {[%clk 0:00:38.1]}
26. e6 {[%clk 0:00:57.1]} 26... f6 {[%clk 0:00:34.1]} 27. Bb4 {[%clk 0:00:46.8]}
27... Rhe8 {[%clk 0:00:33.6]} 28. f5 {[%clk 0:00:38.8]} 28... gxf5 {[%clk
0:00:30.4]} 29. Rxh5 {[%clk 0:00:39.4]} 29... b6 {[%clk 0:00:23]} 30. Rh7 {[%clk
0:00:37.8]} 30... Kc6 {[%clk 0:00:17.3]} 31. Bxe7 {[%clk 0:00:34.6]} 31... Rc8
{[%clk 0:00:17.5]} 32. Bb4 {[%clk 0:00:32.9]} 32... Rc7 {[%clk 0:00:17.7]} 33.
Rh5 {[%clk 0:00:31.5]} 33... Ne5 {[%clk 0:00:17.4]} 34. Rxf5 {[%clk 0:00:30.6]}
34... Rxe6 {[%clk 0:00:17.1]} 35. Kd1 {[%clk 0:00:25.8]} 35... Rg7 {[%clk
0:00:15.2]} 36. Rf2 {[%clk 0:00:20.6]} 36... d4 {[%clk 0:00:14.4]} 37. Bf8
{[%clk 0:00:17]} 37... Rg6 {[%clk 0:00:14.1]} 38. a4 {[%clk 0:00:16.2]} 38...
Kd5 {[%clk 0:00:13.4]} 39. b3 {[%clk 0:00:16.1]} 39... Ng4 {[%clk 0:00:12.8]}
40. Rd2 {[%clk 0:00:12.4]} 40... Ne3+ {[%clk 0:00:09]} 41. Kc1 {[%clk
0:00:12.8]} 41... Rxg2 {[%clk 0:00:07.5]} 42. c4+ {[%clk 0:00:09.3]} 42... Ke4
{[%clk 0:00:02.3]} 43. Rxg2 {[%clk 0:00:08.8]} 43... f5 {[%clk 0:00:02.4]} 44.
Rd2 {[%clk 0:00:08.6]} 44... f4 {[%clk 0:00:02.6]} 45. Bh6 {[%clk 0:00:08.5]}
45... f3 {[%clk 0:00:01.5]} 46. Rf2 {[%clk 0:00:08.3]} 1-0

[Event "Early-Titled-Tuesday-Blitz-April-23-2024"]
[Site "Chess.com"]
[Date "2024.04.23"]
[Round "2"]
[White "RamonManon0g"]
[Black "The_Machine04"]
[Result "0-1"]
[WhiteElo "2450"]
[BlackElo "2753"]
[TimeControl "180+1"]
[EndTime "8:18:26 PDT"]
[Termination "The_Machine04 won by resignation"]

1. e4 {[%clk 0:03:00.9]} 1... d6 {[%clk 0:02:59.1]} 2. d4 {[%clk 0:03:00.6]}
2... Nf6 {[%clk 0:02:59.1]} 3. Nc3 {[%clk 0:03:01.3]} 3... e5 {[%clk 0:02:58.1]}
4. dxe5 {[%clk 0:03:00.6]} 4... dxe5 {[%clk 0:02:59]} 5. Qxd8+ {[%clk
0:03:00.7]} 5... Kxd8 {[%clk 0:02:59.9]} 6. Bg5 {[%clk 0:03:00.9]} 6... Be6
{[%clk 0:02:59]} 7. Nf3 {[%clk 0:02:59.9]} 7... Nd7 {[%clk 0:02:58]} 8. O-O-O
{[%clk 0:02:58.4]} 8... Bd6 {[%clk 0:02:58.1]} 9. Nb5 {[%clk 0:02:56.8]} 9...
Ke7 {[%clk 0:02:57.5]} 10. Nd2 {[%clk 0:02:40.5]} 10... a6 {[%clk 0:02:51.2]}
11. Nxd6 {[%clk 0:02:39.9]} 11... cxd6 {[%clk 0:02:52.1]} 12. Nc4 {[%clk
0:02:40.3]} 12... Bxc4 {[%clk 0:02:41.4]} 13. Bxc4 {[%clk 0:02:41.2]} 13... h6
{[%clk 0:02:42]} 14. Bxf6+ {[%clk 0:02:16.5]} 14... Nxf6 {[%clk 0:02:40.6]} 15.
Bd5 {[%clk 0:02:17.4]} 15... Rab8 {[%clk 0:02:37.3]} 16. f3 {[%clk 0:02:17.6]}
16... Rhc8 {[%clk 0:02:32.4]} 17. Rd3 {[%clk 0:02:14.8]} 17... Rc5 {[%clk
0:02:29.1]} 18. Rhd1 {[%clk 0:02:14.1]} 18... b5 {[%clk 0:02:27.4]} 19. b4
{[%clk 0:02:01.7]} 19... Rc7 {[%clk 0:02:23]} 20. Kb2 {[%clk 0:02:01.2]} 20...
Rb6 {[%clk 0:02:20.4]} 21. c3 {[%clk 0:01:51.7]} 21... Nh5 {[%clk 0:02:18.3]}
22. g3 {[%clk 0:01:51]} 22... Nf6 {[%clk 0:02:17.7]} 23. f4 {[%clk 0:01:46.3]}
23... Nd7 {[%clk 0:02:14.3]} 24. Kb3 {[%clk 0:01:35.9]} 24... Nf6 {[%clk
0:02:08.2]} 25. R1d2 {[%clk 0:01:03.7]} 25... Rb8 {[%clk 0:02:07]} 26. fxe5
{[%clk 0:00:47.2]} 26... dxe5 {[%clk 0:02:06]} 27. a4 {[%clk 0:00:47.2]} 27...
Rbc8 {[%clk 0:01:38.4]} 28. axb5 {[%clk 0:00:38]} 28... axb5 {[%clk 0:01:36.7]}
29. Ra2 {[%clk 0:00:37.2]} 29... Rd7 {[%clk 0:01:08.9]} 30. Ra5 {[%clk 0:00:20]}
30... Rb8 {[%clk 0:01:08.2]} 31. Ra6 {[%clk 0:00:19.8]} 31... Ne8 {[%clk
0:01:02.8]} 32. Rf3 {[%clk 0:00:17.8]} 32... f6 {[%clk 0:00:56.3]} 33. Re6+
{[%clk 0:00:16.9]} 33... Kd8 {[%clk 0:00:56.6]} 34. Rd3 {[%clk 0:00:15.4]} 34...
Nc7 {[%clk 0:00:56.1]} 35. Rc6 {[%clk 0:00:15.4]} 35... Ke7 {[%clk 0:00:52.6]}
36. Rc5 {[%clk 0:00:12.9]} 36... Rb6 {[%clk 0:00:45.4]} 37. c4 {[%clk
0:00:13.1]} 37... Na6 {[%clk 0:00:20.1]} 38. Rc8 {[%clk 0:00:10.3]} 38... bxc4+
{[%clk 0:00:19.8]} 39. Kxc4 {[%clk 0:00:10]} 39... Rxb4+ {[%clk 0:00:18.7]} 40.
Kc3 {[%clk 0:00:10.5]} 40... Rb8 {[%clk 0:00:16.8]} 41. Rc6 {[%clk 0:00:08.9]}
41... Nb4 {[%clk 0:00:15.8]} 42. Re6+ {[%clk 0:00:08.6]} 42... Kf8 {[%clk
0:00:15.5]} 43. Rd1 {[%clk 0:00:09]} 43... Nxd5+ {[%clk 0:00:14.8]} 44. exd5
{[%clk 0:00:09.9]} 44... Rc8+ {[%clk 0:00:14.3]} 45. Kb4 {[%clk 0:00:09.7]}
45... Rb7+ {[%clk 0:00:14.5]} 46. Ka5 {[%clk 0:00:10.2]} 46... Ra8+ {[%clk
0:00:14.5]} 47. Ra6 {[%clk 0:00:10.6]} 47... Rxa6+ {[%clk 0:00:14.9]} 48. Kxa6
{[%clk 0:00:11.5]} 48... Rb2 {[%clk 0:00:14.5]} 49. d6 {[%clk 0:00:11.4]} 49...
Ke8 {[%clk 0:00:15]} 50. d7+ {[%clk 0:00:11.8]} 50... Kd8 {[%clk 0:00:15.4]} 51.
Ka7 {[%clk 0:00:11.4]} 51... Rb4 {[%clk 0:00:14.2]} 52. Ka6 {[%clk 0:00:11.2]}
52... Rd4 {[%clk 0:00:14.6]} 53. Rb1 {[%clk 0:00:10.6]} 53... Rxd7 {[%clk
0:00:14.9]} 54. Rb8+ {[%clk 0:00:10.9]} 54... Ke7 {[%clk 0:00:15.4]} 55. Rg8
{[%clk 0:00:11.8]} 55... Kf7 {[%clk 0:00:15.4]} 56. Rb8 {[%clk 0:00:11.6]} 56...
Rc7 {[%clk 0:00:15.3]} 57. Kb5 {[%clk 0:00:11.2]} 57... Rc2 {[%clk 0:00:15.7]}
58. Ka4 {[%clk 0:00:10.2]} 58... Rxh2 {[%clk 0:00:15.6]} 0-1

[Event "Early-Titled-Tuesday-Blitz-April-23-2024"]
[Site "Chess.com"]
[Date "2024.04.23"]
[Round "2"]
[White "vladgoncharov"]
[Black "H3nriqueTV"]
[Result "0-1"]
[WhiteElo "2601"]
[BlackElo "2305"]
[TimeControl "180+1"]
[EndTime "8:18:28 PDT"]
[Termination "H3nriqueTV won on time"]

1. d4 {[%clk 0:03:00.9]} 1... Nf6 {[%clk 0:02:55.6]} 2. c4 {[%clk 0:02:54.4]}
2... g6 {[%clk 0:02:53.6]} 3. Nc3 {[%clk 0:02:53.8]} 3... d5 {[%clk 0:02:53.1]}
4. cxd5 {[%clk 0:02:52.6]} 4... Nxd5 {[%clk 0:02:51.8]} 5. e4 {[%clk 0:02:52]}
5... Nxc3 {[%clk 0:02:52.4]} 6. bxc3 {[%clk 0:02:51.9]} 6... Bg7 {[%clk
0:02:53.3]} 7. Bc4 {[%clk 0:02:48.9]} 7... c5 {[%clk 0:02:52]} 8. Ne2 {[%clk
0:02:48.2]} 8... Nc6 {[%clk 0:02:50.6]} 9. Be3 {[%clk 0:02:44]} 9... O-O {[%clk
0:02:50.6]} 10. O-O {[%clk 0:02:43.5]} 10... cxd4 {[%clk 0:02:45]} 11. cxd4
{[%clk 0:02:43.2]} 11... Na5 {[%clk 0:02:37.5]} 12. Bd3 {[%clk 0:02:22.3]} 12...
a6 {[%clk 0:02:35.6]} 13. Qd2 {[%clk 0:02:16.9]} 13... b5 {[%clk 0:02:33.2]} 14.
Bh6 {[%clk 0:02:06.3]} 14... Bb7 {[%clk 0:02:02.5]} 15. Bxg7 {[%clk 0:02:04.3]}
15... Kxg7 {[%clk 0:02:02.8]} 16. Rac1 {[%clk 0:02:01.9]} 16... Rc8 {[%clk
0:02:00.1]} 17. Rxc8 {[%clk 0:01:56.6]} 17... Bxc8 {[%clk 0:02:00.5]} 18. Rc1
{[%clk 0:01:53.5]} 18... Bb7 {[%clk 0:02:01]} 19. Qc3 {[%clk 0:01:25.9]} 19...
Kg8 {[%clk 0:01:43.9]} 20. Qc7 {[%clk 0:01:16.6]} 20... e6 {[%clk 0:00:36.6]}
21. Qxd8 {[%clk 0:01:10]} 21... Rxd8 {[%clk 0:00:36.6]} 22. Rc7 {[%clk
0:01:07.4]} 22... Rc8 {[%clk 0:00:36.4]} 23. Rxc8+ {[%clk 0:01:06.7]} 23... Bxc8
{[%clk 0:00:36.6]} 24. f3 {[%clk 0:01:07.1]} 24... Bb7 {[%clk 0:00:35.2]} 25.
Kf2 {[%clk 0:01:06.9]} 25... Kf8 {[%clk 0:00:35.7]} 26. Ke3 {[%clk 0:01:06.8]}
26... Ke7 {[%clk 0:00:36.4]} 27. h4 {[%clk 0:01:07.1]} 27... Kd6 {[%clk
0:00:36.5]} 28. a3 {[%clk 0:00:55.9]} 28... Nc6 {[%clk 0:00:35.9]} 29. f4 {[%clk
0:00:52.5]} 29... Ne7 {[%clk 0:00:32.4]} 30. g4 {[%clk 0:00:36.3]} 30... f5
{[%clk 0:00:15.3]} 31. gxf5 {[%clk 0:00:25.6]} 31... gxf5 {[%clk 0:00:16.2]} 32.
Ng3 {[%clk 0:00:25]} 32... fxe4 {[%clk 0:00:16.2]} 33. Nxe4+ {[%clk 0:00:22.5]}
33... Bxe4 {[%clk 0:00:15.6]} 34. Bxe4 {[%clk 0:00:22.1]} 34... Nf5+ {[%clk
0:00:16.5]} 35. Kd3 {[%clk 0:00:21.7]} 35... h6 {[%clk 0:00:16]} 36. h5 {[%clk
0:00:21.8]} 36... a5 {[%clk 0:00:13.3]} 37. Bf3 {[%clk 0:00:05.5]} 37... Ne7
{[%clk 0:00:13.6]} 38. Kc3 {[%clk 0:00:04.3]} 38... Nd5+ {[%clk 0:00:13.4]} 39.
Kb3 {[%clk 0:00:03]} 39... Nxf4 {[%clk 0:00:13.2]} 40. Kc3 {[%clk 0:00:03.5]}
40... Nd5+ {[%clk 0:00:13.5]} 41. Kd3 {[%clk 0:00:03.6]} 41... Ne7 {[%clk
0:00:13.6]} 42. Kc3 {[%clk 0:00:03.4]} 42... e5 {[%clk 0:00:14.2]} 43. dxe5+
{[%clk 0:00:03.2]} 43... Kxe5 {[%clk 0:00:15.1]} 44. Kd3 {[%clk 0:00:03.2]}
44... Nd5 {[%clk 0:00:15]} 45. Bd1 {[%clk 0:00:01.9]} 45... Nf4+ {[%clk
0:00:15.2]} 46. Ke3 {[%clk 0:00:02.2]} 46... Ne6 {[%clk 0:00:15.7]} 47. Be2
{[%clk 0:00:02.2]} 47... Nd4 {[%clk 0:00:15.7]} 48. Bd3 {[%clk 0:00:02.5]} 48...
b4 {[%clk 0:00:16.4]} 49. axb4 {[%clk 0:00:02.3]} 49... axb4 {[%clk 0:00:17.3]}
50. Kd2 {[%clk 0:00:02.1]} 50... Kd5 {[%clk 0:00:16.1]} 51. Bg6 {[%clk
0:00:02.1]} 51... Kc5 {[%clk 0:00:14.9]} 52. Kd3 {[%clk 0:00:02.3]} 52... Ne6
{[%clk 0:00:14.1]} 0-1

[Event "Early-Titled-Tuesday-Blitz-April-23-2024"]
[Site "Chess.com"]
[Date "2024.04.23"]
[Round "2"]
[White "Airquake"]
[Black "shimastream"]
[Result "1-0"]
[WhiteElo "2666"]
[BlackElo "3041"]
[TimeControl "180+1"]
[EndTime "8:18:29 PDT"]
[Termination "Airquake won on time"]

1. b3 {[%clk 0:03:00.9]} 1... e5 {[%clk 0:02:57.1]} 2. Bb2 {[%clk 0:03:01.8]}
2... Nc6 {[%clk 0:02:57]} 3. e3 {[%clk 0:02:58.3]} 3... Nge7 {[%clk 0:02:56.6]}
4. c4 {[%clk 0:02:54.9]} 4... d5 {[%clk 0:02:56.3]} 5. cxd5 {[%clk 0:02:55.2]}
5... Nxd5 {[%clk 0:02:57.2]} 6. Bc4 {[%clk 0:02:55]} 6... Be6 {[%clk 0:02:52.3]}
7. Ne2 {[%clk 0:02:53.6]} 7... Qd7 {[%clk 0:02:50.1]} 8. O-O {[%clk 0:02:50.7]}
8... O-O-O {[%clk 0:02:49.6]} 9. d4 {[%clk 0:02:46.5]} 9... e4 {[%clk 0:02:45]}
10. Nbc3 {[%clk 0:02:42.1]} 10... f5 {[%clk 0:02:43.9]} 11. Nxd5 {[%clk
0:02:31.3]} 11... Bxd5 {[%clk 0:02:44.8]} 12. Nf4 {[%clk 0:02:19.3]} 12... Bxc4
{[%clk 0:02:24.6]} 13. bxc4 {[%clk 0:02:20.2]} 13... Bd6 {[%clk 0:02:25.1]} 14.
d5 {[%clk 0:01:54]} 14... Bxf4 {[%clk 0:02:24.5]} 15. exf4 {[%clk 0:01:54.8]}
15... Nb4 {[%clk 0:02:18.9]} 16. Qd4 {[%clk 0:01:35.1]} 16... b6 {[%clk
0:02:18.4]} 17. Qxg7 {[%clk 0:01:35.7]} 17... Rhg8 {[%clk 0:02:09.6]} 18. Qxd7+
{[%clk 0:01:35.3]} 18... Rxd7 {[%clk 0:02:10.5]} 19. g3 {[%clk 0:01:30.4]} 19...
Nd3 {[%clk 0:02:09.8]} 20. Bc3 {[%clk 0:01:22.7]} 20... Nxf4 {[%clk 0:02:07.8]}
21. Kh1 {[%clk 0:01:13]} 21... Nd3 {[%clk 0:02:07]} 22. Rad1 {[%clk 0:01:11]}
22... Rg6 {[%clk 0:02:01.8]} 23. f3 {[%clk 0:01:10.7]} 23... c6 {[%clk 0:02:02]}
24. fxe4 {[%clk 0:01:06.3]} 24... fxe4 {[%clk 0:02:02.9]} 25. Rf8+ {[%clk
0:01:05.1]} 25... Kb7 {[%clk 0:02:02.9]} 26. Rdf1 {[%clk 0:00:54.3]} 26... cxd5
{[%clk 0:01:59.9]} 27. cxd5 {[%clk 0:00:54.7]} 27... Rgd6 {[%clk 0:01:53.8]} 28.
Re8 {[%clk 0:00:55]} 28... Rxd5 {[%clk 0:01:45.8]} 29. Rxe4 {[%clk 0:00:55.3]}
29... Rc5 {[%clk 0:01:46.5]} 30. Bf6 {[%clk 0:00:42.5]} 30... Rc2 {[%clk
0:01:46.8]} 31. Re7 {[%clk 0:00:34.1]} 31... Kc6 {[%clk 0:01:32.8]} 32. Rxd7
{[%clk 0:00:31.8]} 32... Kxd7 {[%clk 0:01:33.7]} 33. Rd1 {[%clk 0:00:32.2]}
33... Rc1 {[%clk 0:01:30]} 34. Rxc1 {[%clk 0:00:32.1]} 34... Nxc1 {[%clk
0:01:30.9]} 35. a3 {[%clk 0:00:31.3]} 35... b5 {[%clk 0:01:31.1]} 36. Kg2 {[%clk
0:00:29.1]} 36... Ke6 {[%clk 0:01:28.7]} 37. Bd4 {[%clk 0:00:28.2]} 37... a5
{[%clk 0:01:29.3]} 38. Bc3 {[%clk 0:00:26.4]} 38... a4 {[%clk 0:01:29.2]} 39.
Kf3 {[%clk 0:00:26.7]} 39... Nd3 {[%clk 0:01:29.3]} 40. Ke3 {[%clk 0:00:26.6]}
40... Nc5 {[%clk 0:01:29.3]} 41. Bb4 {[%clk 0:00:26.7]} 41... Na6 {[%clk
0:01:07]} 42. Bf8 {[%clk 0:00:25.3]} 42... Kd5 {[%clk 0:01:04]} 43. Kd3 {[%clk
0:00:19.8]} 43... Nc7 {[%clk 0:01:03.2]} 44. g4 {[%clk 0:00:18.9]} 44... Ne6
{[%clk 0:01:04.1]} 45. Bb4 {[%clk 0:00:18.7]} 45... Nf4+ {[%clk 0:01:03.3]} 46.
Ke3 {[%clk 0:00:18.4]} 46... Ne6 {[%clk 0:01:04.2]} 47. h4 {[%clk 0:00:18.2]}
47... Ke5 {[%clk 0:01:03.7]} 48. Bc3+ {[%clk 0:00:16.4]} 48... Kd5 {[%clk
0:01:04]} 49. g5 {[%clk 0:00:17]} 49... Kc4 {[%clk 0:01:02.1]} 50. Bf6 {[%clk
0:00:16.4]} 50... Kb3 {[%clk 0:01:00.8]} 51. h5 {[%clk 0:00:16]} 51... Kxa3
{[%clk 0:00:58.7]} 52. g6 {[%clk 0:00:16.6]} 52... hxg6 {[%clk 0:00:59]} 53. h6
{[%clk 0:00:17.3]} 53... Nf8 {[%clk 0:00:59.1]} 54. Be7+ {[%clk 0:00:13.6]} 1-0